Cogmind - Beta 13 @@@ ROGUE MODE // 2024.04.06 @ 13:14:07 Player: Mogwok Wargfriend Result: Destroyed by H-88 Terminator with KE Penetrator Performance ------------- Evolutions (9) 4500 Regions Visited (14) 2800 Robots Destroyed (85) 425 Value Destroyed (2648) 2648 Prototype IDs (27) 540 Alien Tech Used (0) 0 Bonus (5780) 5780 TOTAL SCORE: 16693 Bonus ------- Follower Combat Kills 726 Met Warlord at Base 500 MAIN.C Attacked Warlord 500 Warlord Defense Kills 54 Met Warlord at Research 2000 Invited to Help at Command 2000 Cogmind --------- Core Integrity 0/1600 Matter 300/300 Energy 99/100 System Corruption 0% Temperature Cool (0) Movement Core (50) Location -1/Access Parts ------- > --- POWER (2) -------- (None) > --- PROPULSION (7) --- (None) > --- UTILITY (14) ----- Advanced Corruption Screen > --- WEAPON (2) ------- (None) > --- INVENTORY (5) ---- Particle Reactor Micro Antimatter Reactor Advanced Sensor Array Quantum Rifle Enhanced Force Lance Peak State ------------ > --- POWER ------------ Light Antimatter Reactor Light Antimatter Reactor > --- PROPULSION ------- Antigrav System Improved Antigrav System Improved Antigrav System Improved Antigrav System Improved Antigrav System Improved Linear Gravjet Improved Linear Gravjet > --- UTILITY ---------- Advanced Power Amplifier Advanced Heat Sink Improved Cooling System Advanced Coolant Injector Medium Storage Unit Energy Well Enhanced Optical Array Advanced Sensor Array Advanced Signal Interpreter Centrium Light Armor Plating Graphene Brace Advanced Hacking Suite Advanced Corruption Screen > --- WEAPON ----------- Particle Cleaver Kinetic Spear > --- INVENTORY -------- Neutrino Core Armored Wheel Xenon Bombardment Thruster Xenon Bombardment Thruster Xenon Bombardment Thruster Improved Cesium-ion Thruster Improved Cesium-ion Thruster Medium Reflective Plating Phasing Sabre Vortex Lance [Rating: 156] Favorites ----------- Power Micro Fission Core Engine Improved Ion Engine Power Core Micro Fission Core Reactor Light Antimatter Reactor Propulsion Improved Flight Unit Wheel Armored Wheel Hover Unit Improved Antigrav System Flight Unit Improved Flight Unit Utility Medium Storage Unit Device Heat Sink Storage Medium Storage Unit Processor Enhanced Optical Array Hackware System Shield Protection Core Shielding Weapon Pulse Rifle Energy Gun Pulse Rifle Energy Cannon Particle Cannon Ballistic Gun Advanced KE Penetrator Special Weapon RU-N14's Throwing Claymores v3 Impact Weapon Power Maul Slashing Weapon Particle Cleaver Piercing Weapon Kinetic Spear Build | -11 -10 -9 -8 -7 -6 -5 -4 -4 -4 -4 -3 -3 -2 -1 ------- Run | Yrd Mat Mat Mat Fac Fac Fac Fac Upp Upp War Pro Res Res Acc Slots Evolved 18 | . . 2 2 2 2 2 2 . . . . 2 2 2 Power 1 | . . . . . . . . . . . . . . 1 Propulsion 5 | . . . 2 1 . . 1 . . . . . 1 . Utility 12 | . . 2 . 1 2 2 1 . . . . 2 1 1 Weapon . | . . . . . . . . . . . . . . . Parts Attached 183 | 5 11 34 11 3 5 14 7 1 1 8 . 11 40 32 Power 24 | 1 4 6 2 . . 3 . . . . . . 4 4 Engine 11 | 1 4 6 . . . . . . . . . . . . Core 8 | . . . 2 . . 3 . . . . . . 2 1 Reactor 5 | . . . . . . . . . . . . . 2 3 Propulsion 66 | 2 2 13 5 2 2 4 4 . . 1 . . 14 17 Treads . | . . . . . . . . . . . . . . . Leg . | . . . . . . . . . . . . . . . Wheel 13 | 2 2 7 . 1 . . . . . . . . . 1 Hover 13 | . . . . . . . . . . . . . 8 5 Flight 40 | . . 6 5 1 2 4 4 . . 1 . . 6 11 Utility 59 | 1 2 9 3 1 3 7 3 . 1 1 . 7 16 5 Device 26 | . 1 4 . . . 5 3 . 1 1 . 3 6 2 Storage 8 | 1 1 2 . . 1 . . . . . . 1 2 . Processor 6 | . . . 1 . . 1 . . . . . . 4 . Hackware 4 | . . . . . . 1 . . . . . 1 1 1 Protection 15 | . . 3 2 1 2 . . . . . . 2 3 2 Artifact . | . . . . . . . . . . . . . . . Weapon 34 | 1 3 6 1 . . . . 1 . 6 . 4 6 6 Energy Gun 15 | 1 1 5 1 . . . . . . 4 . 2 1 . Energy Cannon 3 | . 2 1 . . . . . . . . . . . . Ballistic Gun 1 | . . . . . . . . . . . . 1 . . Ballistic Cannon . | . . . . . . . . . . . . . . . Launcher . | . . . . . . . . . . . . . . . Special Weapon 1 | . . . . . . . . . . 1 . . . . Impact Weapon 1 | . . . . . . . . 1 . . . . . . Slashing Weapon 3 | . . . . . . . . . . . . . 2 1 Piercing Weapon 10 | . . . . . . . . . . 1 . 1 3 5 Special Melee Weapon . | . . . . . . . . . . . . . . . Unidentified Prototypes 15 | . . 3 1 1 1 2 . . . 2 . 2 3 . Parts Lost 68 | . . 9 1 1 . 2 1 1 . . . 2 13 38 Power 6 | . . 1 . . . . . . . . . . 1 4 Propulsion 29 | . . 4 . . . 1 1 . . . . . 4 19 Utility 24 | . . 2 . . . 1 . 1 . . . 1 7 12 Weapon 9 | . . 2 1 1 . . . . . . . 1 1 3 Highest Loss Streak 18 | . . 2 1 1 . 1 1 1 . . . 2 13 18 To Critical Strikes . | . . . . . . . . . . . . . . . Average Slot Usage (%) 90 | . 96 95 96 91 92 86 83 84 85 89 89 85 93 70 Engine 4 | . 14 10 4 . . . . . . . . . . . Core 2 | . . . 3 7 6 5 5 5 5 5 5 4 1 . Wheel 8 | . 28 18 . . . . . . . . . . . . Hover 2 | . . . . . . . . . . . . . 20 10 Flight 13 | . . 2 36 38 33 26 21 21 21 21 21 19 7 6 Device 14 | . 11 10 9 7 6 11 20 16 16 21 21 22 22 17 Storage 10 | . 14 19 9 7 6 5 5 5 5 5 5 7 7 6 Processor 4 | . . . 8 7 6 5 5 5 5 5 5 4 14 11 Hackware 1 | . . . . . . 3 5 5 5 5 5 8 4 3 Protection 10 | . . 10 8 14 25 20 15 15 15 15 15 9 2 3 Energy Gun 8 | . 14 13 15 7 6 5 5 5 5 8 10 6 . . Energy Cannon 3 | . 12 7 . . . . . . . . . . . . Naked Turns . | . . . . . . . . . . . . . . . Heaviest Build 58 | 10 22 34 31 24 26 28 28 30 32 34 34 40 51 58 Greatest Support 69 | 20 20 28 21 26 26 32 36 36 36 38 38 38 48 69 Greatest Overweight (x) 10 | . 1 10 1 . 1 1 . . . 1 . 1 1 2 Average Overweight (x) . | . . 1 1 . . . . . . . . . . . Largest Inventory Capacity 10 | 8 10 10 10 10 10 10 10 10 10 10 10 10 10 10 Average Capacity 9 | 7 9 10 10 10 10 10 10 10 10 10 10 10 10 9 Most Carried 10 | 7 10 10 10 10 10 10 10 10 10 10 10 10 10 10 Average Carried 9 | 3 9 9 9 9 10 10 9 9 9 10 10 9 9 5 Final Capacity 10 | 8 10 10 10 10 10 10 10 10 10 10 10 10 10 5 Final Carried 10 | 7 10 10 10 10 10 10 10 10 10 10 10 9 10 5 Class Distribution -------------------- 30% | Mutant 27% | Sprinter 17% | Scavenger-Mutant 9% | Scavenger-Scout 7% | Commander-Sprinter Dominant Class ---------------- Mutant | -10/Materials Scavenger-Mutant | -9/Materials Mutant | -8/Materials Sprinter | -7/Factory Sprinter | -6/Factory Sprinter | -5/Factory Sprinter | -4/Factory Sprinter | -4/Upper Caves Sprinter | -4/Upper Caves Commander-Sprinter | -4/Warlord Commander-Sprinter | -3/Proximity Caves Hacker-Sprinter | -3/Research Scavenger-Scout | -2/Research Scavenger-Scout | -1/Access Resources | -11 -10 -9 -8 -7 -6 -5 -4 -4 -4 -4 -3 -3 -2 -1 ----------- Run | Yrd Mat Mat Mat Fac Fac Fac Fac Upp Upp War Pro Res Res Acc Matter Collected 2030 | 166 394 346 86 60 50 137 79 10 20 80 . 70 365 167 Remotely . | . . . . . . . . . . . . . . . Salvage Created 3401 | . 499 1277 414 . 7 124 214 79 . 25 42 . 179 541 Parts 178 | . 37 72 25 . 2 5 4 5 . . . . 3 25 Haulers Intercepted 4 | . 1 2 . . . . . . . . . . 1 . Recyclers Shooed 6 | . 3 1 2 . . . . . . . . . . . Parts Field Recycled . | . . . . . . . . . . . . . . . Retrieved Matter . | . . . . . . . . . . . . . . . Parts Self-Destructed 7 | . . . . . . . . 3 . . 4 . . . Prevented 1 | . . . . . . . . 1 . . . . . . Kills | -11 -10 -9 -8 -7 -6 -5 -4 -4 -4 -4 -3 -3 -2 -1 ------- Run | Yrd Mat Mat Mat Fac Fac Fac Fac Upp Upp War Pro Res Res Acc Combat Hostiles Destroyed 60 | . 10 20 8 . . 2 3 4 . 1 1 . 3 8 Melee 12 | . . . . . . . . 1 . . . . 3 8 Guns 31 | . 5 14 6 . . 2 1 1 . 1 1 . . . Cannons 10 | . 5 5 . . . . . . . . . . . . AOE 3 | . . 1 2 . . . . . . . . . . . Classes Destroyed 14 | . 6 5 . . . 2 . . . . . . . 1 Worker 3 | . . 2 . . 1 . . . . . . . . . Builder 3 | . 1 2 . . . . . . . . . . . . Tunneler 1 | . . 1 . . . . . . . . . . . . Hauler 4 | . 1 2 . . . . . . . . . . 1 . Recycler 5 | . 2 2 1 . . . . . . . . . . . Operator 2 | . . 1 . . . . . . . . . . . 1 Watcher 7 | . 3 3 1 . . . . . . . . . . . Swarmer 24 | . 8 3 3 . . . . 4 . 1 . . 3 2 Grunt 16 | . 2 8 3 . . . 1 . . . . . . 2 Brawler 1 | . . . . . . 1 . . . . . . . . Duelist 1 | . . 1 . . . . . . . . . . . . Sentry 12 | . . 8 2 . . . 1 . . . 1 . . . Hunter 1 | . . . . . . . . . . . . . . 1 Programmer 5 | . . . . . . 1 1 . . . . . . 3 Best Kill Streak 4 | . 4 4 4 . 1 1 1 4 . 1 1 . 3 3 Combat Bots Only 4 | . 3 3 3 . . 1 1 4 . 1 1 . 3 3 Max Kills in Single Turn 2 | . 2 1 2 . 1 1 1 1 . 1 1 . 1 1 Gunslinging . | . . . . . . . . . . . . . . . Exploded 2 | . . 1 2 . . . . . . . . . . . Melee 1 | . . . . . . . . 1 . . . . 1 1 Uniques/NPCs Destroyed . | . . . . . . . . . . . . . . . Combat | -11 -10 -9 -8 -7 -6 -5 -4 -4 -4 -4 -3 -3 -2 -1 -------- Run | Yrd Mat Mat Mat Fac Fac Fac Fac Upp Upp War Pro Res Res Acc Hostile Shots Fired 724 | . 41 141 16 . 11 14 13 37 4 2 . 21 117 307 Missed 246 | . 14 42 2 . 7 7 6 15 1 1 . 13 48 90 Damage Taken 9220 | . 236 1234 308 . 62 244 142 336 78 6 20 206 1631 4717 Core 2458 | . 62 222 . . 21 22 . 71 19 5 4 29 379 1624 Absorbed by Shields 24 | . . . . . . . . . . 6 18 . . . Redirected to Shielding 289 | . . . . . 5 4 13 43 4 1 . . 94 125 Regen/Repaired (Parts) 338 | . . 100 185 . . . . . . 53 . . . . Core Remaining (%) 87 | 100 75 44 100 100 97 97 . . . . 91 97 73 . Volleys Fired 255 | . 52 105 18 3 12 33 14 7 . 7 3 . 1 . Largest 2 | . 2 2 2 1 1 1 1 1 . 2 2 . 1 . Hottest 160 | . 110 124 90 63 63 63 63 63 . 148 160 . 85 . Shots Fired 384 | . 72 197 30 3 12 33 14 7 . 9 6 . 1 . Gun 304 | . 47 142 30 3 12 33 14 7 . 9 6 . 1 . Cannon 80 | . 25 55 . . . . . . . . . . . . Launcher . | . . . . . . . . . . . . . . . Special . | . . . . . . . . . . . . . . . Kinetic . | . . . . . . . . . . . . . . . Thermal 320 | . 72 163 . 3 12 33 14 7 . 9 6 . 1 . Explosive . | . . . . . . . . . . . . . . . Electromagnetic 64 | . . 34 30 . . . . . . . . . . . Robot Hit Streak 13 | . 10 13 10 3 11 13 4 5 . 3 4 . . . Robot Miss Streak 4 | . 4 4 2 1 1 2 4 1 . 1 1 . 1 . Penetration Max . | . . . . . . . . . . . . . . . Secondary Targets . | . . . . . . . . . . . . . . . Shots Hit Robots 299 | . 39 133 27 2 11 21 9 8 . 7 4 . 9 29 Core Hits 134 | . 22 54 21 1 4 8 3 4 . 2 1 . 5 9 Critical Kills . | . . . . . . . . . . . . . . . Critical Parts Destroyed . | . . . . . . . . . . . . . . . Critical Strikes 11 | . 2 4 . . . . 2 . . . . . . 3 Burn 8 | . 2 4 . . . . 2 . . . . . . . Sever 2 | . . . . . . . . . . . . . . 2 Impale 1 | . . . . . . . . . . . . . . 1 Melee Attacks 87 | . . . . . . . . 5 . . . . 25 57 Impact 5 | . . . . . . . . 5 . . . . . . Slashing 42 | . . . . . . . . . . . . . 5 37 Piercing 32 | . . . . . . . . . . . . . 16 16 Entropic 8 | . . . . . . . . . . . . . 4 4 Sneak Attacks 1 | . . . . . . . . . . . . . . 1 Combat Hostiles . | . . . . . . . . . . . . . . . Follow-up Attacks 6 | . . . . . . . . . . . . . 1 5 Damage Inflicted 6677 | . 610 2138 585 35 188 383 169 260 . 119 81 . 507 1602 Guns 3081 | . 327 1317 377 35 188 383 169 85 . 119 81 . . . Cannons 1026 | . 283 743 . . . . . . . . . . . . Explosions 259 | . . 71 188 . . . . . . . . . . . Melee 2272 | . . . . . . . . 175 . . . . 507 1590 Ramming 39 | . . 7 20 . . . . . . . . . . 12 Kinetic . | . . . . . . . . . . . . . . . Thermal 3587 | . 610 1729 188 35 188 383 169 85 . 119 81 . . . Explosive . | . . . . . . . . . . . . . . . Electromagnetic 779 | . . 402 377 . . . . . . . . . . . Impact 175 | . . . . . . . . 175 . . . . . . Slashing 1186 | . . . . . . . . . . . . . 138 1048 Piercing 543 | . . . . . . . . . . . . . 201 342 Entropic 368 | . . . . . . . . . . . . . 168 200 Highest Corruption 2 | . . . . . . 1 2 2 2 2 . . . . Average Corruption 1 | . . . . . . 1 1 2 2 2 . . . . Corruption Purged . | . . . . . . . . . . . . . . . Corruption Blocked 66 | . . . . . . . . . . . . . 57 9 Effects 10 | . . . . . . 2 2 3 2 1 . . . . Message Errors 4 | . . . . . . 1 . 2 . 1 . . . . Matter Fused 2 | . . . . . . . 1 . 1 . . . . . Heat Flow Errors 1 | . . . . . . . 1 . . . . . . . Energy Discharges 1 | . . . . . . . . 1 . . . . . . Data Loss (minor) 2 | . . . . . . 1 . . 1 . . . . . Overload Shots . | . . . . . . . . . . . . . . . Overflow Damage 403 | . . 8 16 . . . . 78 . . . . 46 255 Projectiles . | . . . . . . . . . . . . . . . Explosions 24 | . . 8 16 . . . . . . . . . . . Melee 379 | . . . . . . . . 78 . . . . 46 255 Knockbacks 1 | . . . . . . . . 1 . . . . . . Impact 1 | . . . . . . . . 1 . . . . . . Kinetic . | . . . . . . . . . . . . . . . Secondary . | . . . . . . . . . . . . . . . Self-Inflicted Damage 105 | . . 3 97 . . . . . . . . . . 5 Shots 3 | . . . 3 . . . . . . . . . . . Rammed 7 | . . 2 2 . . . . . . . . . . 3 Targets Rammed 7 | . . 2 2 . . . . . . . . . . 3 Kicked . | . . . . . . . . . . . . . . . Crushed . | . . . . . . . . . . . . . . . Highest Temperature 329 | . 90 294 54 22 329 11 194 . . 14 50 . . . Average Temperature 64 | . 28 87 13 13 68 4 108 . . 10 26 . . . Received Heat Transfer 963 | . 12 513 54 . 21 12 9 . 21 . 3 27 45 246 Siege Activations . | . . . . . . . . . . . . . . . Robots Corrupted . | . . . . . . . . . . . . . . . Combat Hostiles . | . . . . . . . . . . . . . . . Parts Fried 6 | . . 4 1 . . . . 1 . . . . . . Impact Corruptions 2 | . . . . . . . . 2 . . . . . . Robots Melted 2 | . . . . . . . 2 . . . . . . . Combat Hostiles 2 | . . . . . . . 2 . . . . . . . Parts Melted 16 | . 1 7 1 . 1 1 5 . . . . . . . Heat Transferred 8398 | . 1702 4030 250 74 407 814 481 185 . 255 200 . . . Parts Sabotaged . | . . . . . . . . . . . . . . . Parts Stolen . | . . . . . . . . . . . . . . . Parts Stripped . | . . . . . . . . . . . . . . . Power Chain Reactions 6 | . . 2 4 . . . . . . . . . . . Alert | -11 -10 -9 -8 -7 -6 -5 -4 -4 -4 -4 -3 -3 -2 -1 ------- Run | Yrd Mat Mat Mat Fac Fac Fac Fac Upp Upp War Pro Res Res Acc Peak Influence 365 | . 221 222 267 114 51 240 115 . . . . 176 234 365 Initial 99 | . . 46 66 79 . 24 . . . . . . 99 . Average 83 | . 87 89 159 67 7 110 23 . . . . 53 71 127 Maximum Alert Level 1 | . 1 1 1 . . 1 . . . . . . 1 1 Low Security (%) 88 | 100 89 89 77 100 100 76 100 . . . . 100 86 77 Level 1 11 | . 10 10 22 . . 23 . . . . . . 13 22 Level 2 . | . . . . . . . . . . . . . . . Level 3 . | . . . . . . . . . . . . . . . Level 4 . | . . . . . . . . . . . . . . . Level 5 . | . . . . . . . . . . . . . . . High Security . | . . . . . . . . . . . . . . . Max Security . | . . . . . . . . . . . . . . . Squads Dispatched 23 | . 1 1 3 1 2 6 2 . . . . . . 7 Investigation 4 | . . 1 . . . 1 1 . . . . . . 1 Extermination 4 | . . . . . . 2 1 . . . . . . 1 Reinforcement 10 | . 1 . 3 1 1 2 . . . . . . . 2 Assault . | . . . . . . . . . . . . . . . Garrison 5 | . . . . . 1 1 . . . . . . . 3 Intercept . | . . . . . . . . . . . . . . . Searches Triggered . | . . . . . . . . . . . . . . . Construction Impeded . | . . . . . . . . . . . . . . . Haulers Reinforced . | . . . . . . . . . . . . . . . Active Scanning Responses . | . . . . . . . . . . . . . . . Cargo Convoy Interrupts . | . . . . . . . . . . . . . . . Stealth | -11 -10 -9 -8 -7 -6 -5 -4 -4 -4 -4 -3 -3 -2 -1 --------- Run | Yrd Mat Mat Mat Fac Fac Fac Fac Upp Upp War Pro Res Res Acc Distress Signals 20 | . 1 5 4 1 . 1 . . . . . . 6 2 Communications Jammed . | . . . . . . . . . . . . . . . Distress Signals . | . . . . . . . . . . . . . . . Times Spotted 271 | . 22 32 12 10 8 31 26 4 3 18 2 13 45 45 Peak Tracking Total 14 | . 3 5 3 6 2 5 5 4 5 11 1 9 14 9 Tactical Retreats 21 | . 2 3 . . . . . . 1 . . 1 5 9 Traps | -11 -10 -9 -8 -7 -6 -5 -4 -4 -4 -4 -3 -3 -2 -1 ------- Run | Yrd Mat Mat Mat Fac Fac Fac Fac Upp Upp War Pro Res Res Acc Traps Triggered 8 | . 3 1 . . 1 1 2 . . . . . . . Indirectly . | . . . . . . . . . . . . . . . Trap Hack Attempts . | . . . . . . . . . . . . . . . Triggered . | . . . . . . . . . . . . . . . Disarmed . | . . . . . . . . . . . . . . . Reprogrammed . | . . . . . . . . . . . . . . . Reused . | . . . . . . . . . . . . . . . Traps Extracted . | . . . . . . . . . . . . . . . Installed . | . . . . . . . . . . . . . . . Triggered 6 | . . . . . . . . . . 6 . . . . Machines | -11 -10 -9 -8 -7 -6 -5 -4 -4 -4 -4 -3 -3 -2 -1 ---------- Run | Yrd Mat Mat Mat Fac Fac Fac Fac Upp Upp War Pro Res Res Acc Machines Disabled 7 | . 1 4 2 . . . . . . . . . . . Max in Single Turn 1 | . 1 1 1 . . . . . . . . . . . Garrison Access 8 | . . . . . 2 1 1 . . . . 1 2 1 Machines Repaired . | . . . . . . . . . . . . . . . Machines Dismantled . | . . . . . . . . . . . . . . . Machines Sabotaged . | . . . . . . . . . . . . . . . Overloaded Fab Kills . | . . . . . . . . . . . . . . . Hacking | -11 -10 -9 -8 -7 -6 -5 -4 -4 -4 -4 -3 -3 -2 -1 --------- Run | Yrd Mat Mat Mat Fac Fac Fac Fac Upp Upp War Pro Res Res Acc Machines Accessed 57 | . 4 12 8 3 6 4 6 . 1 8 . 1 1 3 Terminals 33 | . 4 8 5 2 4 3 4 . . . . . 1 2 Fabricators 2 | . . . . 1 . . 1 . . . . . . . Repair Stations 4 | . . 2 2 . . . . . . . . . . . Recycling Units 3 | . . 2 1 . . . . . . . . . . . Scanalyzers . | . . . . . . . . . . . . . . . Garrison Access 6 | . . . . . 2 1 1 . . . . 1 . 1 Total Hacks 160 | . 9 46 27 4 16 11 13 . 1 21 . 2 2 8 Successful 93 | . 3 30 18 . 10 1 6 . 1 21 . 1 . 2 Failed 65 | . 6 15 8 4 6 10 7 . . . . 1 2 6 Catastrophic 13 | . 2 2 . 1 1 3 4 . . . . . . . Database Lockouts 2 | . . 1 1 . . . . . . . . . . . Manual 90 | . 7 31 20 3 13 7 3 . . . . . 2 4 Terminals 96 | . 9 31 18 3 13 8 7 . . . . . 2 5 Fabricators 6 | . . . . 1 . . 5 . . . . . . . Repair Stations 13 | . . 9 4 . . . . . . . . . . . Recycling Units 11 | . . 6 5 . . . . . . . . . . . Scanalyzers . | . . . . . . . . . . . . . . . Garrison Access 12 | . . . . . 3 3 1 . . . . 2 . 3 Terminal Hacks 42 | . 1 8 6 . 2 . 2 . 1 21 . . . 1 Record 20 | . . . 1 . 1 . 2 . . 15 . . . 1 Robot Analysis 6 | . 1 2 3 . . . . . . . . . . . Prototype ID Bank 6 | . . . . . 1 . . . . 5 . . . . Open Door 2 | . . . . . . . . . 1 1 . . . . Terminal Index 1 | . . . 1 . . . . . . . . . . . Alert Level 2 | . . 2 . . . . . . . . . . . . Unreport Threat 1 | . . 1 . . . . . . . . . . . . Locate Traps 2 | . . 2 . . . . . . . . . . . . Dispatch Records 1 | . . . 1 . . . . . . . . . . . Zone Layout 1 | . . 1 . . . . . . . . . . . . Fabricator Hacks 2 | . . . . . . . 2 . . . . . . . Network Status 1 | . . . . . . . 1 . . . . . . . Build 1 | . . . . . . . 1 . . . . . . . Repair Station Hacks 12 | . . 8 4 . . . . . . . . . . . Scan Component 7 | . . 5 2 . . . . . . . . . . . Repair 5 | . . 3 2 . . . . . . . . . . . Recycling Unit Hacks 2 | . . 1 1 . . . . . . . . . . . Report Inventory 2 | . . 1 1 . . . . . . . . . . . Scanalyzer . | . . . . . . . . . . . . . . . Garrison Access Hacks 6 | . . . . . 2 1 1 . . . . 1 . 1 Seal Access 6 | . . . . . 2 1 1 . . . . 1 . 1 Unauthorized Hacks 29 | . 2 13 7 . 6 . 1 . . . . . . . Terminals 24 | . 2 11 5 . 5 . 1 . . . . . . . Assimilate 3 | . . 3 . . . . . . . . . . . . Botnet 17 | . 1 7 4 . 4 . 1 . . . . . . . Operators 4 | . 1 1 1 . 1 . . . . . . . . . Fabricators . | . . . . . . . . . . . . . . . Repair Stations . | . . . . . . . . . . . . . . . Recycling Units 4 | . . 2 2 . . . . . . . . . . . Reject 2 | . . 1 1 . . . . . . . . . . . Mask 2 | . . 1 1 . . . . . . . . . . . Scanalyzers . | . . . . . . . . . . . . . . . Garrison Access 1 | . . . . . 1 . . . . . . . . . Intercept 1 | . . . . . 1 . . . . . . . . . Data Cores Recovered 2 | . . 1 . . . . . . . . . . . 1 Used 1 | . . . . . . . . . . . . . . 1 Hacking Detections 40 | . 4 12 6 3 4 3 5 . . . . . 1 2 Full Trace Events . | . . . . . . . . . . . . . . . Feedback Events . | . . . . . . . . . . . . . . . Feedback Blocked . | . . . . . . . . . . . . . . . Robot Schematics Acquired . | . . . . . . . . . . . . . . . Robots Built . | . . . . . . . . . . . . . . . Authchips . | . . . . . . . . . . . . . . . Time . | . . . . . . . . . . . . . . . Total Robot Build Rating . | . . . . . . . . . . . . . . . Part Schematics Acquired . | . . . . . . . . . . . . . . . Parts Built 1 | . . . . . . . 1 . . . . . . . Authchips . | . . . . . . . . . . . . . . . Time 69 | . . . . . . . 69 . . . . . . . Total Part Build Rating 9 | . . . . . . . 9 . . . . . . . Parts Repaired 5 | . . 3 2 . . . . . . . . . . . Time 166 | . . 96 70 . . . . . . . . . . . Parts Recycled . | . . . . . . . . . . . . . . . Recycled Matter . | . . . . . . . . . . . . . . . Retrieved Matter . | . . . . . . . . . . . . . . . Retrieved Components . | . . . . . . . . . . . . . . . Parts Scanalyzed . | . . . . . . . . . . . . . . . Part Schematics Acquired . | . . . . . . . . . . . . . . . Parts Damaged . | . . . . . . . . . . . . . . . Bothacking | -11 -10 -9 -8 -7 -6 -5 -4 -4 -4 -4 -3 -3 -2 -1 ------------ Run | Yrd Mat Mat Mat Fac Fac Fac Fac Upp Upp War Pro Res Res Acc Used RIF Installer . | . . . . . . . . . . . . . . . Robots Hacked . | . . . . . . . . . . . . . . . Non-combat . | . . . . . . . . . . . . . . . Combat . | . . . . . . . . . . . . . . . Robot Hacks Applied . | . . . . . . . . . . . . . . . Relay Couplers Released 2 | . . . . . . . . . . . . . 2 . Machine Destruction 2 | . . . . . . . . . . . . . 2 . Fabnet Peak Effective % . | . . . . . . . . . . . . . . . Robots Rewired 7 | . . 1 . . 1 . . . . 5 . . . . Allies Hacked 1 | . . . . . . . . . . . . 1 . . Hacks Repelled . | . . . . . . . . . . . . . . . Allies | -11 -10 -9 -8 -7 -6 -5 -4 -4 -4 -4 -3 -3 -2 -1 -------- Run | Yrd Mat Mat Mat Fac Fac Fac Fac Upp Upp War Pro Res Res Acc Total Allies 11 | . . 2 . . 4 . . . . 5 . . . . Largest Group 5 | . . 2 2 . 3 3 . . . 5 5 4 . . Highest-Rated Group 316 | . . 18 18 . 93 93 . . . 316 316 241 . . Highest-Rated Ally 68 | . . 10 10 . 31 31 . . . 68 68 65 . . Total Orders 2 | . . . 2 . . . . . . . . . . . STAY 1 | . . . 1 . . . . . . . . . . . FOLLOW 1 | . . . 1 . . . . . . . . . . . Ally Attacks 64 | . . 6 4 . 3 24 . . . 13 10 4 . . Total Damage 2671 | . . 58 47 . 33 374 . . . 1162 708 289 . . Kills 19 | . . 1 . . . 7 . . . 8 2 1 . . Allies Corrupted 2 | . . . . . . . . . . . . 2 . . Allies Melted 1 | . . . . . . . . . . . . . 1 . Intel | -11 -10 -9 -8 -7 -6 -5 -4 -4 -4 -4 -3 -3 -2 -1 ------- Run | Yrd Mat Mat Mat Fac Fac Fac Fac Upp Upp War Pro Res Res Acc Robot Analysis Total 6 | . 1 2 3 . . . . . . . . . . . Derelict Logs Recovered 2 | . . . . . . . . 1 1 . . . . . Drone Launches . | . . . . . . . . . . . . . . . Drone Recoveries . | . . . . . . . . . . . . . . . Exploration | -11 -10 -9 -8 -7 -6 -5 -4 -4 -4 -4 -3 -3 -2 -1 ------------- Run | Yrd Mat Mat Mat Fac Fac Fac Fac Upp Upp War Pro Res Res Acc Turns Passed 11615 | 56 1079 3505 622 490 680 808 832 186 99 456 433 281 1216 872 Spaces Moved 12174 | 55 843 1130 401 527 755 965 1043 538 344 1089 810 535 1952 1187 Core 212 | 10 . 10 . . . . . . . . . . . 192 Treads . | . . . . . . . . . . . . . . . Legs . | . . . . . . . . . . . . . . . Wheels 1903 | 45 843 948 . . . . . . . . . . . 67 Hover 2031 | . . . . . . . . . . . . . 1608 423 Flight 8028 | . . 172 401 527 755 965 1043 538 344 1089 810 535 344 505 Fastest Speed 25 | 50 80 85 97 27 27 26 25 28 28 28 29 29 25 29 Average Speed 48 | 74 90 119 98 27 27 28 27 28 28 28 29 29 44 53 Slowest Speed 550 | 80 95 550 101 27 97 101 30 28 28 105 29 105 108 200 Overloaded Moves . | . . . . . . . . . . . . . . . Propulsion Burnouts . | . . . . . . . . . . . . . . . Robots Hopped 75 | . . . . 18 7 22 10 . . 2 . 8 3 5 Cave-ins Triggered . | . . . . . . . . . . . . . . . Exploration Rate (%) 47 | 3 86 73 43 16 18 30 28 72 74 94 81 16 40 44 Regions Visited 14 Branch Regions 4 Pre-discovered Areas 2 | . . . . . . . . . 1 1 . . . . Known Exits Taken 1 | . . . . . . . . . . . . . 1 . Unknown Exits Taken 13 | 1 1 1 1 1 1 1 1 1 1 1 1 1 . . Scrap Searched 8 | . . . . . . . . 2 3 . 3 . . . Spaces Dug 17 | . . . . . . . . . . . . . 3 14 Terrain Destroyed 41 | . . 7 17 . . . . . . . . . 3 14 Melee 17 | . . . . . . . . . . . . . 3 14 Projectile . | . . . . . . . . . . . . . . . AOE 24 | . . 7 17 . . . . . . . . . . . Terrain Rammed . | . . . . . . . . . . . . . . . Walls Destroyed . | . . . . . . . . . . . . . . . Machines Disabled . | . . . . . . . . . . . . . . . Actions | -11 -10 -9 -8 -7 -6 -5 -4 -4 -4 -4 -3 -3 -2 -1 --------- Run | Yrd Mat Mat Mat Fac Fac Fac Fac Upp Upp War Pro Res Res Acc Total 17309 | 67 1089 3097 602 854 1210 1446 1562 555 345 1223 1001 650 2254 1354 Wait 4423 | . 166 1777 153 331 436 442 477 4 . 73 189 102 209 64 Move 12024 | 54 842 1129 400 494 740 925 1023 537 343 1085 809 520 1946 1177 Hop 61 | . . . . 14 7 17 9 . . 1 . 6 2 5 Pick Up 57 | 8 8 13 6 4 . 1 2 1 1 . . 1 7 5 Fast Attach 112 | 4 7 19 8 2 4 13 6 . . 5 . 9 21 14 Attach 56 | 1 . 11 3 2 . . 1 1 1 . . 2 16 18 Detach 46 | . 1 8 2 1 . 1 2 . . . . 2 15 14 Swap 18 | . 4 6 . . 1 1 . . . 3 . . 3 . Drop 99 | . 9 24 10 3 3 11 6 . . 7 . 8 10 8 Fire 255 | . 52 105 18 3 12 33 14 7 . 7 3 . 1 . Melee 75 | . . . . . . . . 5 . . . . 24 46 Ram 7 | . . 2 2 . . . . . . . . . . 3 Kick . | . . . . . . . . . . . . . . . Crush . | . . . . . . . . . . . . . . . Escape Stasis 22 | . . . . . . . 22 . . . . . . . Rewire 54 | . . 3 . . 7 2 . . . 42 . . . . Trap . | . . . . . . . . . . . . . . . Miscellaneous . | . . . . . . . . . . . . . . . Route ------- -11/Scrapyard -10/Materials (discovered 4 exits: *Mat x3 / [*Min]) -9/Materials (discovered 4 exits: *Mat x2 / [*Min x2]) -8/Materials (discovered 2 exits: *Fac / [*Sto]) -7/Factory -6/Factory (discovered 4 exits: *Fac x2 / [*Low] / [*Ext]) -5/Factory -4/Factory -4/Upper Caves -4/Upper Caves (discovered 2 exits: *Res / *War) -4/Warlord -3/Proximity Caves -3/Research -2/Research -1/Access History --------- Turn | Location | Event 37 | -11/Scrapyard | Discovered new exit (range 15) 57 | -11/Scrapyard | Entered Materials 127 | -10/Materials | Discovered new exit (range 15) 227 | -10/Materials | Discovered new exit (range 11) 318 | -10/Materials | Build established: Mutant 360 | -10/Materials | Discovered new exit (range 16) 781 | -10/Materials | Discovered new exit (range 8) 1136 | -10/Materials | Entered another Materials area 1136 | -9/Materials | Evolved 2 slots: Utility x2 1221 | -9/Materials | Discovered new exit (range 16) 1606 | -9/Materials | Repaired Cooling System 1754 | -9/Materials | Repaired Imp. Ion Engine 1788 | -9/Materials | Repaired Cooling System 1845 | -9/Materials | Discovered new exit (range 15) 2664 | -9/Materials | Build established: Scavenger-Mutant 4107 | -9/Materials | Discovered new exit (range 15) 4154 | -9/Materials | Central database locked down 4297 | -9/Materials | Core integrity fell below 50% 4485 | -9/Materials | Discovered new exit (range 16) 4531 | -9/Materials | Build established: Mutant 4641 | -9/Materials | Entered another Materials area 4641 | -8/Materials | Accompanied by 2 allies 4641 | -8/Materials | Evolved 2 slots: Propulsion x2 4715 | -8/Materials | Discovered new exit (range 20) 4950 | -8/Materials | Repaired Hrd. Light Armor Plating 5146 | -8/Materials | Met 7R-MNS 5191 | -8/Materials | Discovered new exit (range 18) 5199 | -8/Materials | Central database locked down 5256 | -8/Materials | Repaired Lgt. Nuclear Core 5263 | -8/Materials | Entered Factory 5263 | -7/Factory | Evolved 2 slots: Propulsion x1, Utility x1 5264 | -7/Factory | Caught up to 7R-MNS 5501 | -7/Factory | Build established: Sprinter 5633 | -7/Factory | Discovered new exit (range 10) 5753 | -7/Factory | Entered another Factory area 5753 | -6/Factory | Evolved 2 slots: Utility x2 5754 | -6/Factory | Caught up to 7R-MNS 5866 | -6/Factory | Discovered new exit (range 20) 5970 | -6/Factory | Discovered new exit (range 18) 6042 | -6/Factory | Discovered new exit (range 14) 6128 | -6/Factory | Garrison activated, responded to threat 6169 | -6/Factory | Spotted B-75 Beast 6362 | -6/Factory | Discovered new exit (range 18) 6414 | -6/Factory | Allied Derelicts emerged from ambush trap array 6433 | -6/Factory | Entered another Factory area 6433 | -5/Factory | Accompanied by 3 allies 6433 | -5/Factory | Evolved 2 slots: Utility x2 6434 | -5/Factory | Caught up to 7R-MNS 6774 | -5/Factory | Spotted B-75 Beast 7022 | -5/Factory | Garrison activated, responded to threat 7142 | -5/Factory | Discovered new exit (range 9) 7241 | -5/Factory | Entered another Factory area 7241 | -4/Factory | Evolved 2 slots: Propulsion x1, Utility x1 7242 | -4/Factory | Caught up to 7R-MNS 7784 | -4/Factory | Fabricated Centrium Leg? 8043 | -4/Factory | Discovered new exit (range 11) 8068 | -4/Factory | 7R-MNS successfully reached the Upper Caves 8073 | -4/Factory | Entered Upper Caves 8131 | -4/Upper Caves | Learned 4 Research zone layouts 8243 | -4/Upper Caves | Discovered new exit (range 5) 8259 | -4/Upper Caves | Entered another Upper Caves area 8271 | -4/Upper Caves | Discovered new exit (range 2) 8285 | -4/Upper Caves | Learned location of Testing (-2) 8355 | -4/Upper Caves | Discovered new exit (range 9) 8358 | -4/Upper Caves | Entered Warlord 8368 | -4/Warlord | Discovered new exit (range 14) 8374 | -4/Warlord | System corruption cleaned by Quarantine Array 8489 | -4/Warlord | Learned 4 Research zone layouts 8489 | -4/Warlord | Learned Armory garrison access intel 8489 | -4/Warlord | Learned Armory trap positions 8489 | -4/Warlord | Learned Research trap positions 8497 | -4/Warlord | Visited the Vortex Lab 8499 | -4/Warlord | Found Prototype Piercing Weapon 8499 | -4/Warlord | Identified Vortex Lance 8503 | -4/Warlord | Met EX-DEC 8513 | -4/Warlord | Warlord's base attacked by MAIN.C 8532 | -4/Warlord | Found Prototype Special Weapon 8532 | -4/Warlord | Identified RU-N14's Throwing Claymores v3 8615 | -4/Warlord | Met Warlord 8716 | -4/Warlord | Warlord forces counterattacked 8726 | -4/Warlord | Build established: Commander-Sprinter 8785 | -4/Warlord | Lost 4 allies 8814 | -4/Warlord | Entered Proximity Caves 8814 | -3/Proximity Caves | Accompanied by 5 allies 9078 | -3/Proximity Caves | Spotted B-86 Titan 9189 | -3/Proximity Caves | Attracted the attention of an 0b10 checkpoint 9191 | -3/Proximity Caves | Discovered new exit (range 11) 9247 | -3/Proximity Caves | Entered Research 9247 | -3/Research | Accompanied by 4 allies 9247 | -3/Research | Evolved 2 slots: Utility x2 9249 | -3/Research | Loaded intel: 88 trap records 9518 | -3/Research | Discovered new exit (range 21) 9528 | -3/Research | Entered another Research area 9528 | -2/Research | Warlord forces began assault on 0b10 9528 | -2/Research | Evolved 2 slots: Propulsion x1, Utility x1 9638 | -2/Research | Research machine network offline 9699 | -2/Research | Lost 4 allies 9734 | -2/Research | Lost 13 parts (1p4n7u1w) 9753 | -2/Research | Met up with Warlord 9863 | -2/Research | Borebot progress halted 9995 | -2/Research | Spotted Striker 10004 | -2/Research | Spotted Executioner 10006 | -2/Research | Spotted Striker 10029 | -2/Research | Found Prototype Slashing Weapon 10029 | -2/Research | Identified Particle Cleaver 10042 | -2/Research | Lost 3 allies 10166 | -2/Research | Borebot progress halted 10182 | -2/Research | Borebot progress halted 10225 | -2/Research | Build established: Scavenger-Scout 10528 | -2/Research | Warlord invited to help at Command 10570 | -2/Research | Spotted Striker 10578 | -2/Research | Spotted Striker 10582 | -2/Research | Spotted Striker 10584 | -2/Research | Spotted Striker 10648 | -2/Research | Lost 3 allies 10722 | -2/Research | Discovered new exit (range 18) 10740 | -2/Research | Identified exit to Access 10744 | -2/Research | Entered Access 10744 | -1/Access | Evolved 2 slots: Power x1, Utility x1 10936 | -1/Access | P-80 Master assimilated allied ZE-F3V(b) 10968 | -1/Access | Lost 4 allies 11153 | -1/Access | Garrison activated, responded to threat 11166 | -1/Access | Spotted B-99 Colossus 11225 | -1/Access | Lost 18 parts (2p11n2u3w) 11261 | -1/Access | Spotted B-99 Colossus 11331 | -1/Access | Lost 4 parts (2n2u) 11403 | -1/Access | Found Enh. Force Lance 11533 | -1/Access | Lost 9 parts (1p5n3u) 11551 | -1/Access | Core integrity fell below 50% 11591 | -1/Access | Core integrity fell below 20% 11593 | -1/Access | Lost 4 parts (4u) 11616 | -1/Access | Destroyed by H-88 Terminator with KE Penetrator Last Messages --------------- 11560_ Adv. Corruption Screen intercepted 1% system corruption. 11561_ Penetrated by Slug. 11562_ Graphene Brace destroyed. 11562_ Adv. Corruption Screen intercepted 1% system corruption. 11563_ Penetrated by Slug. 11563_ Slug penetrates Wall. 11569_ Adv. Corruption Screen intercepted 1% system corruption. 11571_ Slug penetrates Wall. 11587_ Acquired Mic. Antimatter Reactor. 11604_ Acquired 63 matter. 11608_ Slug penetrates Wall. 11608_ Penetrated by Slug. 11609_ Slug penetrates Sealed Freight Elevator. 11609_ Penetrated by Slug. 11613_ Slug penetrates Wall. 11616_ Slug penetrates Sealed Freight Elevator. [Achievement: I Think I Know What's Going On] Map ----- +----------------------------------------------------+ | ????????????????????????????????????????########/# | | ???????????????????????????????######???????# | | ???????????????????????????????# ??????# | | ???????????????????????????????# ??????# | | ???????????????????????????????# ?????# | | ???????????????????????????????# """??# | | ???????????????????????????????# """""# | | ??????????########?????????????# """""# | | ??????????# #?????????????# """""###### | | ??????????# #?????????????# """""#????? | | ??????????# #?????????????# #????? | | ??????????# #?????????????# #????? | | ??????????# ############### #????? | | ??????????? ?# ! ## #????? | | ???????????##+##?# ###########+######## | | ???????????# ### # | | ????######?# + # | | ????# #?# % ###p """"" # | | ????# #?## ##?#hp """"" Y | | ????# #??# #??# """"" # ^ | | ????# #### #??#h """"" # | | ????# + #??# """"" # ^ | | ????# # #??# """"" #### #############/# | | ????# # #### w #??# #????????????? | | ????# + + #??# #?????????????? | | ????# #######^########@#####??# #?????????????? | | ????######?????# #??????# #??????# #?????????????? | | ???????????????# ######## ######## #?????????????? | | ???????????????# #?????????????? | | ???????????????# #?????????????? | | ????????????# #?????????????? | | ????????????# #?????????????? | | ????????????# #?????????????? | | ????????????# #?????????????? | | ????????????# #?????????????? | | ????????????# #?????????????? | | ????????????? #?????????????? | | ????????????? #### #?????????????? | | ?????????????? ???# #?????????????? | | ??????????????? ???# #### ######## #?????????????? | | ??????????????? ???#+???#+???????? #?????????????? | | ?????????????????????????????????? #?????????????? | | ?????????????????????????????????? #?????????????? | | ?????????????????????????????????? #?????????????? | | ?????????????????????????????????? #?????????????? | | ?????????????????????????????????????????????????? | | ?????????????????????????????????????????????????? | | ?????????????????????????????????????????????????? | | ?????????????????????????????????????????????????? | | ?????????????????????????????????????????????????? | +----------------------------------------------------+ Best States ------------- Heat Dissipation 98 Coolant Potential 100 Energy Generation 46 Energy Capacity 735 Matter Stores 450 Matter Capacity 450 Sight Range 22 Robot Scan Range 16 Terrain Scan Density 10 Power Amplification 30 Corruption Block 60 Armor Coverage 300 Resistance: TH 15 Core Shielding 30 Power Shielding 66 Phase Shifting 10 Evasion (%) 74 Offensive Hacking 14 Defensive Hacking 24 Item Schematics ----------------- None Robot Schematics ------------------ None Fabricated ------------ Centrium Leg | x1 | -4/Factory | Preloaded Alien Tech Used ----------------- None Achievements -------------- All-out Warlord I Think I Know What's Going On Challenges ------------ None Game ------ Seed CloakTerrabombMount Manual? 0 Play Time 02:34:52 Cumulative 148.8 hours Start 2024.04.05 @ 13:58:39 End 2024.04.06 @ 13:14:07 Sessions 8 Manual Loads 0 Difficulty Rogue Special Mode None Game No. 143 Rogue 143 Adventurer 0 Explorer 0 Win Type - Total 0 Types 0/0/0/0/0/0/0/0/0 Lore% 50 Gallery% 61 Achievement% 42 Wizard Run 0 Options --------- Layout 2 ASCII 1 Keyboard 1 Movement Numpad Keybinds 0 Fullscreen 2 Font 32/TamsynBold Map View 50x44 Zoom Use 0% Tactical HUD 1 Map Filters NONE Filters NONE Steam 1 RUN: 68502658-f442-46af-a22d-73f96a00ee7a